fUSD/lending_fUSD_20240109
["ID","MTS","AMOUNT","RATE_DAILY","PERIOD"]
[310884829,1704773432754,-426.52101079,0.00022999,2]
[310884830,1704773432765,-426.52101079,0.00022999,2]
[310884831,1704773432775,-426.52101079,0.00022999,2]
[310884832,1704773432786,-426.52101079,0.00022999,2]
[310884833,1704773432796,-426.52101079,0.00022999,2]
[310884834,1704773432806,-426.52101079,0.00022999,2]
[310884835,1704773432816,-1000.0,0.00022999,2]
[310884836,1704773432827,-1000.0,0.00022999,2]
[310884837,1704773432837,-1000.0,0.00022999,2]
[310884838,1704773432849,-183761.0341172,0.00023,2]
[310884839,1704773432859,-253230.29804049,0.00023,2]
[310884848,1704773438187,-8932.23468645,0.00023,2]
[310884850,1704773438199,-3755.21869017,0.00023,2]
[310884855,1704773438231,-63624.91481056,0.00023,2]
[310884857,1704773438242,-861.12789105,0.00023,2]
[310884859,1704773438254,-670.626,0.00023,2]
[310884872,1704773438359,-1285.22235789,0.00023,2]
[310884874,1704773438371,-951.26132272,0.00023,2]
[310884876,1704773438382,-1506.77807249,0.00023,2]
[310884878,1704773438393,-403.65785968,0.00023,2]
[310884881,1704773438412,-2226.82947487,0.00023,2]
[310884884,1704773438424,-1014.3770172,0.00023,2]
[310884886,1704773438436,-268.83660001,0.00023,2]
[310885118,1704773440723,-943.2281447,0.00023,2]
[310885436,1704773443605,-3182.35625779,0.00023,2]
[310885442,1704773443660,-1267.53629767,0.00023,2]
[310885455,1704773443773,-3774.01416024,0.00023,2]
[310885462,1704773443827,-20493.80494324,0.00023,2]
[310885523,1704773445701,-5278.14087574,0.00023,2]
[310885524,1704773445756,-2502.90969951,0.00023,2]
[310885525,1704773445812,-2401.0,0.00023,2]
[310885526,1704773445824,-1611.77944775,0.00023,2]
[310885527,1704773445921,-16900.43040757,0.00023,2]
[310885528,1704773445933,-19845.27820285,0.00023,2]
[310885530,1704773446044,-439.89868565,0.00023,2]
[310885533,1704773459789,202.7,0.00022155,2]
[310885534,1704773553976,200.0,0.00021646,2]
[310885535,1704773593251,6996.0,0.00022317,2]
[310885536,1704773640680,409.92,0.00022422,2]
[310885537,1704773660619,275.03,0.00022383,2]
[310885538,1704773742460,1688.0,0.000225,2]
[310885539,1704773750839,180.03,0.00021999,2]
[310885540,1704773753001,589.73,0.000225,2]
[310885541,1704773889595,192.56,0.00020317,2]
[310885542,1704773897478,150.0,0.00022194,2]
[310885543,1704774003137,159.98,0.00021999,2]
[310885544,1704774003336,159.98,0.00022366,2]
[310885545,1704774125557,3361.04724062,0.000225,2]
[310885546,1704774127078,672.06,0.00021999,2]
[310885547,1704774234780,256.69,0.00022193,2]
[310885548,1704774273624,200.0,0.00022043,2]
[310885549,1704774338959,159.04,0.00022422,2]
[310885550,1704774371576,165.62,0.000301,90]
[310885551,1704774387770,182.93,0.00020368,2]
[310885552,1704774554955,462.35,0.00022189,2]
[310885561,1704774631817,-2141.64504361,0.00022571,2]
[310885562,1704774631827,-1000.0,0.00022631,2]
[310885563,1704774631836,-182.93,0.00022632,2]
[310885564,1704774631845,-162.25573714,0.00022666,2]
[310885565,1704774631854,-2046.00104549,0.00022733,2]
[310885566,1704774631872,-159.98,0.00022733,2]
[310885567,1704774631898,-200.0,0.00022766,2]
[310885568,1704774631907,-800.0,0.00022766,2]
[310885569,1704774631916,-200.0,0.00022766,2]
[310885570,1704774631925,-150.0,0.00022897,2]
[310885571,1704774631934,-150.0,0.00022897,2]
[310885572,1704774631943,-1146.77823941,0.00022898,2]
[310885573,1704774631952,-1717.721405,0.00022898,2]
[310885574,1704774631963,-350.0,0.00022898,2]
[310885575,1704774631979,-7352.50002876,0.00022898,2]
[310885576,1704774632086,-329.66712704,0.00022898,2]
[310885577,1704774632110,-2174.56017211,0.00022898,2]
[310885578,1704774632250,-807.94253155,0.00022898,2]
[310885579,1704774632262,-124.07083554,0.00022898,2]
[310885580,1704774632271,-466.2038,0.000229,2]
[310885581,1704774632280,-32.91161797,0.000229,2]
[310885582,1704774632292,-129.34411917,0.000229,2]
[310885583,1704774632301,-1940.90044726,0.000229,2]
[310885584,1704774632317,-33.09955274,0.000229,2]
[310885585,1704774632326,-434.91920127,0.000229,2]
[310885590,1704774638869,-163.1094,0.00022898,2]
[310885591,1704774638879,-711.85903815,0.000229,2]
[310885592,1704774638890,-220.9614575,0.00022996,3]
[310885593,1704774638899,-245.82,0.00022997,2]
[310885594,1704774638909,-457.78963801,0.00022997,2]
[310885595,1704774638938,-491.64613668,0.00022997,2]
[310885596,1704774638986,-251.45109423,0.00022997,2]
[310885597,1704774638995,-288.29485518,0.00022998,2]
[310885598,1704774639004,-11663.03716933,0.00022998,2]
[310885599,1704774639016,-653.67901261,0.00022998,2]
[310885600,1704774639050,-565034.12183148,0.00022998,2]
[310885601,1704774639059,-155.0,0.00022998,2]
[310885602,1704774639069,-5321.43294027,0.00022999,2]
[310885603,1704774639079,-1702.57068239,0.00022999,2]
[310885604,1704774639088,-1179.55849923,0.00022999,2]
[310885605,1704774639105,-4477.84140557,0.00022999,2]
[310885606,1704774639115,-2521.39400502,0.00022999,2]
[310885607,1704774639124,-150.0,0.00022999,2]
[310885608,1704774639134,-150.0,0.00022999,2]
[310885609,1704774639144,-150.0,0.00022999,2]
[310885610,1704774639154,-150.0,0.00022999,2]
[310885611,1704774639166,-150.0,0.00022999,2]
[310885612,1704774639175,-150.0,0.00022999,2]
[310885613,1704774639185,-150.0,0.00022999,2]
[310885614,1704774639196,-229.56303226,0.00022999,2]
[310885615,1704774639206,-119987.91754627,0.00023,2]
[310885616,1704774639224,-8688.53236575,0.00023,2]
[310885617,1704774639261,-376.88947863,0.00023,2]
[310885618,1704774639271,-427.55830137,0.00023,2]
[310885619,1704774639290,-3010.84656047,0.00023,2]
[310885620,1704774639311,-3476.33330977,0.00023,2]
[310885621,1704774639323,-6786.2821714,0.00023,2]
[310885622,1704774639335,-3632.45181388,0.00023,2]
[310885623,1704774639347,-3955.402014,0.00023,2]
[310885624,1704774639363,-1561.99888215,0.00023,2]
[310885765,1704774641071,-312.9550589,0.00023,2]
[310886073,1704774643838,-1260.69700251,0.00022999,2]
[310886075,1704774643848,-1000.0,0.00022999,2]
[310886077,1704774643858,-361.03483884,0.00022999,2]
[310886080,1704774643870,-167.43225085,0.00022999,2]
[310886081,1704774643879,-2356.18034787,0.00023,2]
[310886240,1704774645908,-644.41986421,0.00022998,2]
[310886241,1704774646018,-654.92352865,0.00022998,2]
[310886242,1704774646374,-330.5444031,0.00022998,2]
[310886243,1704774646392,-497.5,0.00022998,2]
[310886244,1704774646407,-309.34104354,0.00022998,2]
[310886249,1704774732991,272.9,0.00021917,2]
[310886250,1704774800605,345.73203912,0.00022999,10]
[310886251,1704774840855,189.52,0.00020479,2]
[310886252,1704774968316,158.58,0.00021976,2]
[310886253,1704774996255,630.12,0.00021983,2]
[310886254,1704775050724,232.71,0.0002194,2]
[310886255,1704775190170,1000.0,0.00022997,5]
[310886256,1704775190441,1000.0,0.00022997,5]
[310886257,1704775190684,823.01958413,0.00022999,5]
[310886258,1704775206024,162.07,0.00021939,2]
[310886259,1704775221485,163.6,0.00022153,2]
[310886260,1704775275381,254.7,0.00021945,2]
[310886261,1704775277747,180.04,0.00020066,2]
[310886262,1704775277953,180.04,0.00022329,2]
[310886263,1704775353695,201.0,0.00021574,2]
[310886264,1704775461572,495.9,0.00021956,2]
[310886265,1704775658165,160.49,0.00022165,2]
[310886269,1704775698587,187.65,0.00020038,2]
[310886270,1704775698816,187.65,0.00022302,2]
[310886274,1704775724885,251.95,0.00022002,2]
[310886275,1704775732857,1000.0,0.00022,2]
[310886285,1704775798552,500.00008253,0.00022,3]
[310886289,1704775831985,-1000.0,0.00022699,2]
[310886290,1704775831998,-161.79848863,0.000227,2]
[310886291,1704775832007,-161.79848857,0.00022722,2]
[310886292,1704775832017,-161.79848857,0.00022744,2]
[310886293,1704775832027,-200.0,0.00022766,2]
[310886294,1704775832037,-800.0,0.00022766,2]
[310886295,1704775832047,-200.0,0.00022766,2]
[310886296,1704775832056,-216.0,0.0002277,2]
[310886297,1704775832070,-150.0,0.00022799,2]
[310886298,1704775832080,-3660.03433403,0.000228,2]
[310886299,1704775832092,-802.97236597,0.000228,2]
[310886300,1704775832102,-1432.10899778,0.000228,2]
[310886301,1704775832237,-703.44006261,0.000228,2]
[310886302,1704775832249,-822.97013961,0.000228,2]
[310886303,1704775832259,-250.7148,0.000228,2]
[310886304,1704775832269,-233.67859137,0.000228,2]
[310886305,1704775832279,-500.0,0.00022816,2]
[310886306,1704775832289,-6.69384418,0.00022843,2]
[310886307,1704775832694,-493.29615582,0.00022843,2]
[310886308,1704775832704,-233.67859134,0.0002285,2]
[310886309,1704775832713,-156.5242854,0.00022883,2]
[310886310,1704775832723,-441.4268,0.00022898,2]
[310886311,1704775832733,-25089.0589,0.00022898,2]
[310886312,1704775832744,-1126.8455,0.00022898,2]
[310886313,1704775832753,-2881.4676,0.000229,2]
[310886314,1704775832763,-1000.0,0.000229,2]
[310886315,1704775832772,-16862.80056048,0.000229,2]
[310886316,1704775832784,-2313.59975551,0.000229,2]
[310886317,1704775832800,-1989.99581272,0.000229,2]
[310886318,1704775832812,-250.0,0.000229,2]
[310886320,1704775838137,-161.79848857,0.00022767,2]
[310886321,1704775838147,-161.79848857,0.00022789,2]
[310886322,1704775838157,-250.86451208,0.0002285,2]
[310886323,1704775838168,-262.67548792,0.0002285,2]
[310886324,1704775838177,-999.36846445,0.000229,2]
[310886325,1704775838189,-1872.04340684,0.000229,2]
[310886326,1704775838202,-1346.74976217,0.000229,2]
[310886327,1704775838219,-572.8699992,0.000229,2]
[310886328,1704775838252,-1039.42772959,0.000229,2]
[310886329,1704775838370,-1131.54490904,0.000229,2]
[310886330,1704775838382,-2121.0232,0.000229,2]
[310886331,1704775838395,-1231.43189095,0.000229,2]
[310886332,1704775838412,-21072.17117129,0.000229,2]
[310886333,1704775838424,-1474.38730416,0.000229,2]
[310886334,1704775838437,-356.55040731,0.000229,2]
[310886335,1704775838449,-233.67859134,0.000229,2]
[310886336,1704775838459,-1089.59254516,0.00022981,3]
[310886337,1704775838471,-251.95,0.00022981,2]
[310886338,1704775838484,-1000.112,0.0002299,2]
[310886340,1704775838495,-1939.742,0.0002299,2]
[310886342,1704775838507,-1135.974,0.0002299,2]
[310886345,1704775838518,-626.747,0.0002299,2]
[310886347,1704775838530,-319.766,0.0002299,2]
[310886349,1704775838543,-236.654,0.0002299,2]
[310886352,1704775838554,-269.241,0.0002299,2]
[310886354,1704775838563,-16289.764,0.0002299,2]
[310886356,1704775838573,-219.75630515,0.0002299,2]
[310886358,1704775838587,-150.0,0.0002299,2]
[310886361,1704775838599,-2693.65528618,0.00022997,3]
[310886363,1704775838611,-155.74775654,0.00022997,2]
[310886366,1704775838623,-283.58951851,0.00022997,2]
[310886370,1704775838634,-5321.43294027,0.00022997,2]
[310886371,1704775838646,-2089.17857863,0.00022997,2]
[310886373,1704775838658,-156.28043965,0.00022998,2]
[310886375,1704775838670,-4293.19207696,0.00022998,2]
[310886377,1704775838682,-166.5897499,0.00022998,2]
[310886380,1704775838695,-156.12078807,0.00022998,2]
[310886382,1704775838708,-550.49551283,0.00022998,2]
[310886384,1704775838720,-2669.4330839,0.00022998,2]
[310886387,1704775838733,-1606.17060449,0.00022998,2]
[310886389,1704775838746,-262.19433483,0.00022998,2]
[310886391,1704775838756,-591.55031534,0.00022998,2]
[310886393,1704775838767,-291.39802616,0.00022998,2]
[310886396,1704775838778,-3326.10114817,0.00022998,2]
[310886398,1704775838788,-288.29485518,0.00022998,2]
[310886400,1704775838800,-351.88194621,0.00022998,2]
[310886402,1704775838812,-1260.69700252,0.00022999,2]
[310886404,1704775838824,-1518.21901059,0.00022999,2]
[310886406,1704775838835,-717.0864511,0.00022999,2]
[310886408,1704775838846,-129774.8779124,0.00023,2]
[310886411,1704775838857,-320872.72169335,0.00023,2]
[310886413,1704775838870,-2697.71553036,0.00023,2]
[310886415,1704775838882,-112328.61024547,0.00023,2]
[310886418,1704775838903,-754.78797493,0.00023,2]
[310886577,1704775840563,-1045.79908187,0.00023,2]
[310886585,1704775840625,-454.96730374,0.00023,2]
[310886651,1704775841266,-206033.03751543,0.00023,2]
[310886655,1704775841289,-496.3877819,0.00023,2]
[310886657,1704775841303,-1184.64414085,0.00023,2]
[310886666,1704775841378,-500.0,0.00023,2]
[310886754,1704775843824,-150.0,0.00022789,2]
[310886755,1704775843835,-161.79848857,0.00022811,2]
[310886756,1704775843847,-150.0,0.00022956,2]
[310886757,1704775843860,-150.0,0.00022991,2]
[310886758,1704775843871,-1391.71551137,0.00023,2]
[310886759,1704775843886,-21895.54579746,0.00023,2]
[310886760,1704775843908,-1041.72948904,0.00023,2]
[310886761,1704775843923,-264.1135013,0.00023,2]
[310886762,1704775843938,-306.0,0.00023,2]
[310886763,1704775843952,-1500.0,0.00023,2]
[310886785,1704775846070,-651.97207511,0.00023,2]
[310886786,1704775846458,-1614.722,0.00023,2]
[310886787,1704775901636,603.28,0.00021997,2]
[310886788,1704775918387,163.38,0.0002199,2]
[310886790,1704776073737,201.0,0.00022135,2]
[310886791,1704776148135,168.88,0.00019962,2]
[310886792,1704776148333,168.88,0.00022226,2]
[310886793,1704776216358,231.62,0.0002188,2]
[310886794,1704776293979,3227.0,0.00022317,2]
[310886795,1704776382256,150.0,0.0002248,2]
[310886796,1704776421579,517.37,0.00021889,2]
[310886797,1704776569020,151.99,0.00019978,2]
[310886798,1704776569213,151.49450741,0.00022242,2]
[310886799,1704776569239,0.49549259,0.00022242,2]
[310886800,1704776627614,634.21,0.00021912,2]
[310886801,1704776645104,234.68,0.00021912,2]
[310886802,1704776765328,161.79848857,0.00022448,2]
[310886803,1704776767582,150.0,0.00022488,2]
[310886810,1704776920635,1500.0,0.000225,2]
[310886811,1704776921014,1586.035848,0.00022,2]
[310886812,1704776938703,500.01467825,0.00021902,2]
[310886813,1704776938729,86.08532175,0.00021902,2]
[310886820,1704776991314,170.46,0.00019992,2]
[310886821,1704776991558,170.46,0.00022256,2]
[310886822,1704776993403,1000.0,0.000225,2]
[310886842,1704777032199,-1937.77820977,0.00022501,2]
[310886845,1704777032211,-1680.86068797,0.00022501,2]
[310886847,1704777032221,-1190.2064749,0.0002258,2]
[310886849,1704777032231,-161.79848857,0.00022599,2]
[310886851,1704777032240,-201.0,0.0002266,2]
[310886853,1704777032249,-150.0,0.00022743,2]
[310886855,1704777032259,-161.79848857,0.00022749,2]
[310886857,1704777032268,-150.0,0.00022751,2]
[310886866,1704777032347,-150.0,0.00022753,2]
[310886868,1704777032356,-1000.25,0.00022753,2]
[310886870,1704777032367,-150.99,0.00022753,2]
[310886872,1704777032376,-150.0,0.00022765,2]
[310886874,1704777032385,-200.0,0.00022766,2]
[310886876,1704777032394,-800.0,0.00022766,2]
[310886878,1704777032403,-200.0,0.00022766,2]
[310886880,1704777032413,-150.0,0.00022773,2]
[310886881,1704777032423,-150.0,0.00022791,2]
[310886882,1704777032432,-150.0,0.00022801,2]
[310886883,1704777032441,-150.0,0.00022806,2]
[310886884,1704777032451,-150.0,0.00022808,2]
[310886885,1704777032460,-150.0,0.00022816,2]
[310886886,1704777032469,-150.0,0.00022817,2]
[310886887,1704777032478,-336.91153015,0.0002284,2]
[310886888,1704777032487,-150.0,0.00022859,2]
[310886889,1704777032497,-150.0,0.00022877,2]
[310886890,1704777032506,-1000.0,0.00022885,2]
[310886891,1704777032515,-1000.0,0.00022885,2]
[310886892,1704777032524,-1000.0,0.00022885,2]
[310886893,1704777032533,-405.18432984,0.00022885,2]
[310886894,1704777032558,-594.81567016,0.00022885,2]
[310886895,1704777032567,-125.56370718,0.00022885,2]
[310886896,1704777032578,-874.43629282,0.00022885,2]
[310886897,1704777032587,-1000.0,0.00022885,2]
[310886898,1704777032596,-1000.0,0.00022885,2]
[310886899,1704777032606,-222.50255427,0.00022885,2]
[310886900,1704777032619,-777.49744573,0.00022885,2]
[310886901,1704777032628,-410.20302174,0.00022885,2]
[310886902,1704777032652,-589.79697826,0.00022885,2]
[310886903,1704777032663,-390.94766035,0.00022885,2]
[310886904,1704777032684,-553.09839258,0.00022885,2]
[310886906,1704777038389,-22.88324707,0.00022885,2]
[310886907,1704777038399,-2199.60450878,0.0002289,2]
[310886908,1704777038408,-234.68,0.00022891,2]
[310886909,1704777038418,-150.0,0.00022893,2]
[310886910,1704777038427,-4875.8378,0.00022898,2]
[310886911,1704777038437,-45331.5114,0.000229,2]
[310886912,1704777038447,-3397.79357213,0.000229,2]
[310886913,1704777038456,-161.79848857,0.000229,2]
[310886914,1704777038465,-2497.89245609,0.000229,2]
[310886915,1704777038475,-1740.36647161,0.000229,2]
[310886916,1704777038484,-150.0,0.00022931,2]
[310886917,1704777038494,-150.0,0.00022933,2]
[310886918,1704777038504,-150.0,0.00022938,2]
[310886919,1704777038514,-1500.0,0.00022941,2]
[310886920,1704777038523,-150.0,0.00022944,2]
[310886921,1704777038533,-1052.87965223,0.00022946,3]
[310886922,1704777038542,-1500.0,0.00022946,2]
[310886923,1704777038552,-150.0,0.00022955,2]
[310886924,1704777038561,-150.0,0.00022958,2]
[310886925,1704777038570,-422.05919142,0.00022986,2]
[310886926,1704777038579,-150.0,0.00022987,2]
[310886927,1704777038588,-150.0,0.0002299,2]
[310886928,1704777038597,-159.41659021,0.0002299,2]
[310886929,1704777038606,-150.0,0.00022995,2]
[310886930,1704777038615,-150.0,0.00022995,2]
[310886931,1704777038626,-150.0,0.00022995,2]
[310886932,1704777038635,-600.35308665,0.00022998,2]
[310886933,1704777038644,-2095.44739364,0.00022998,2]
[310886934,1704777038653,-306.54037269,0.00022998,2]
[310886935,1704777038664,-160.1755323,0.00022998,2]
[310886936,1704777038674,-261.22117503,0.00022998,2]
[310886937,1704777038683,-942.48901101,0.00022998,2]
[310886938,1704777038692,-3959.83035726,0.00022998,2]
[310886939,1704777038701,-339.13715662,0.00022998,2]
[310886940,1704777038710,-685.14516987,0.00022998,2]
[310886941,1704777038719,-996.98529095,0.00022998,2]
[310886942,1704777038727,-1000.0,0.00022998,2]
[310886943,1704777038737,-5421.82685109,0.00022998,2]
[310886944,1704777038745,-581.18512785,0.00022998,2]
[310886945,1704777038754,-288.29485518,0.00022998,2]
[310886946,1704777038763,-155.63175262,0.00022998,2]
[310886947,1704777038772,-159.26301046,0.00022998,2]
[310886948,1704777038781,-253.91884923,0.00022998,2]
[310886949,1704777038790,-4731.65760839,0.00022998,2]
[310886950,1704777038798,-263.62340877,0.00022998,2]
[310886951,1704777038807,-305.23481685,0.00022998,2]
[310886952,1704777038816,-2173.6020267,0.00022999,2]
[310886953,1704777038825,-300.0,0.00022999,2]
[310886954,1704777038833,-300.0,0.00022999,2]
[310886955,1704777038842,-300.0,0.00022999,2]
[310886956,1704777038851,-263.34166418,0.00022999,2]
[310886957,1704777038860,-2568.75834639,0.00023,3]
[310886958,1704777038869,-88488.47603014,0.00023,2]
[310886959,1704777038878,-28650.14930076,0.00023,2]
[310886960,1704777038887,-454962.21582423,0.00023,2]
[310886961,1704777038898,-23409.00000003,0.00023,2]
[310886962,1704777038943,-7272.14841484,0.00023,2]
[310886963,1704777038973,-3906.9103258,0.00023,2]
[310886964,1704777038984,-1477.50872566,0.00023,2]
[310887082,1704777041457,-17242.50684228,0.00023,2]
[310887083,1704777041469,-418.42154549,0.00023,2]
[310887084,1704777041481,-8094.10953144,0.00023,2]
[310887089,1704777043748,-1525.07921654,0.00023,2]
[310887094,1704777046425,-3945.26039579,0.00023,2]
[310887095,1704777046564,-1743.61584844,0.00023,2]
[310887096,1704777046576,-278.24112876,0.00023,2]
[310887099,1704777216747,161.95,0.00022455,2]
[310887100,1704777366044,166.74,0.00022294,2]
[310887101,1704777388549,531.12,0.00022293,2]
[310887102,1704777456122,183.7,0.00020297,2]
[310887103,1704777602554,219.41,0.00022147,2]
[310887104,1704777702887,156.81,0.00022125,2]
[310887105,1704777792487,1407.0,0.00022317,2]
[310887106,1704777861934,513.49918566,0.00022115,2]
[310887107,1704777861959,61.60081434,0.00022115,2]
[310887108,1704777873902,201.0,0.00022327,2]
[310887109,1704777882886,1805.15,0.00022209,2]
[310887110,1704777883632,532.80075076,0.00022317,2]
[310887111,1704777885134,956.59539801,0.00017854,2]
[310887112,1704777887537,1210.0875443,0.00022317,2]
[310887113,1704777887564,23.68073192,0.00022317,2]
[310887114,1704777889048,155.0,0.00021158,2]
[310887115,1704777903634,1233.76827622,0.00022317,2]
[310887116,1704777909048,239.26408373,0.00021158,2]
[310887117,1704777926142,1233.76827622,0.00022317,2]
[310887118,1704777934244,158.58624909,0.00022295,2]
[310887119,1704777940719,1233.76827622,0.00022317,2]
[310887120,1704777958136,463.89857794,0.00022317,2]
[310887121,1704777970722,201.78,0.00020026,2]
[310887122,1704777971070,201.78,0.0002229,2]
[310887123,1704778035011,172.31,0.0001768,2]
[310887124,1704778046262,244.59,0.00022147,2]
[310887125,1704778091918,184.02,0.00022104,2]
[310887126,1704778114505,261.78,0.00022126,2]
[310887142,1704778232330,-150.0,0.00022531,2]
[310887144,1704778232339,-787.11713582,0.00022531,2]
[310887149,1704778232384,-212.88286418,0.00022531,2]
[310887150,1704778232394,-797.95015673,0.0002254,2]
[310887151,1704778232403,-174.90808071,0.00022541,2]
[310887152,1704778232413,-156.81,0.00022568,2]
[310887153,1704778232423,-158.08945214,0.0002269,2]
[310887154,1704778232432,-161.95,0.00022704,2]
[310887155,1704778232442,-148.30308802,0.0002279,2]
[310887156,1704778232454,-13.73691198,0.0002279,2]
[310887157,1704778232464,-800.0,0.00022816,2]
[310887158,1704778232474,-150.0,0.00022899,2]
[310887159,1704778232484,-154.34358329,0.000229,2]
[310887160,1704778232494,-850.77010214,0.000229,2]
[310887171,1704778238928,-383.49510476,0.0002253,2]
[310887172,1704778238938,-2570.90369786,0.000229,2]
[310887173,1704778238947,-2500.0,0.000229,2]
[310887174,1704778238957,-167.22019686,0.000229,2]
[310887175,1704778238967,-161.95,0.00022954,2]
[310887176,1704778238977,-1360.801,0.0002299,2]
[310887177,1704778238988,-63.62118331,0.0002299,2]
[310887178,1704778239000,-250.31681669,0.0002299,2]
[310887179,1704778239010,-123.63307773,0.00022994,2]
[310887180,1704778239023,-392.92178369,0.00022994,2]
[310887181,1704778239038,-701.2538,0.00022994,2]
[310887182,1704778239257,-873.09052494,0.00022994,2]
[310887183,1704778239270,-626.14298553,0.00022994,2]
[310887184,1704778239282,-1875.4882059,0.00022994,2]
[310887203,1704778241417,-411.90033311,0.00022994,2]
[310887204,1704778241914,-2770.7680295,0.00022994,2]
[310887205,1704778241924,-2238.47609635,0.00022998,2]
[310887206,1704778241936,-286.28950071,0.00022998,2]
[310887207,1704778241946,-423.59227264,0.00022998,2]
[310887208,1704778241955,-895.88073079,0.00022998,2]
[310887209,1704778241965,-954.81158965,0.00022998,2]
[310887210,1704778241981,-3750.429,0.00022998,2]
[310887211,1704778241993,-663.08466977,0.00022998,2]
[310887212,1704778242160,-2426.77242867,0.00022998,2]
[310887213,1704778242169,-2149.8258083,0.00022998,2]
[310887214,1704778242179,-4477.84140557,0.00022998,2]
[310887215,1704778242189,-664.23311995,0.00022999,2]
[310887216,1704778242198,-2140.8217135,0.00022999,2]
[310887217,1704778242208,-493.71145678,0.00023,3]
[310887218,1704778242216,-8981.54231443,0.00023,2]
[310887220,1704778243448,-25765.44549011,0.00023,2]
[310887221,1704778243506,-3602.72,0.00023,2]
[310887230,1704778246607,-768.06384375,0.00023,2]
[310887231,1704778246664,-333.231228,0.00023,2]
[310887232,1704778246777,-8704.94034837,0.00023,2]
[310887234,1704778350739,155.0,0.00020608,2]
[310887235,1704778352137,620.96617796,0.00021982,2]
[310887236,1704778352937,155.42378645,0.00020608,2]
[310887237,1704778353409,289.05081514,0.00022,4]
[310887238,1704778354165,1765.09,0.00022304,2]
[310887239,1704778354407,155.0,0.00021753,2]
[310887240,1704778354912,3185.21463735,0.00021982,2]
[310887241,1704778355145,1596.87726617,0.000184,2]
[310887242,1704778356922,300.0,0.00022,2]
[310887243,1704778357333,155.0,0.000207,2]
[310887244,1704778357541,155.0,0.00020608,2]
[310887245,1704778358374,401.67001773,0.0002231,2]
[310887246,1704778358427,1000.0,0.0002185,2]
[310887247,1704778358562,2705.0,0.00022307,2]
[310887248,1704778359969,360.26072372,0.00018318,2]
[310887249,1704778362196,419.14166426,0.00021982,2]
[310887250,1704778363125,155.0,0.00021066,2]
[310887251,1704778363165,155.0,0.00020608,2]
[310887252,1704778363431,2466.42310275,0.00022211,2]
[310887253,1704778364368,559.65017112,0.00020379,2]
[310887254,1704778365650,446.73645241,0.00020379,2]
[310887255,1704778367213,728.15565437,0.00021,2]
[310887256,1704778368116,620.96617796,0.00021982,2]
[310887257,1704778371145,1596.87726617,0.000184,2]
[310887258,1704778372430,155.0,0.00020608,2]
[310887259,1704778372882,3185.21463735,0.0002198,2]
[310887260,1704778375154,1635.76,0.00022129,2]
[310887261,1704778375642,155.12103172,0.00020608,2]
[310887262,1704778376394,155.0,0.00021753,2]
[310887263,1704778377064,200.0,0.00022067,2]
[310887264,1704778377332,155.24300784,0.000207,2]
[310887265,1704778378037,420.71685721,0.00021982,2]
[310887266,1704778378382,1000.0,0.0002185,2]
[310887267,1704778379437,155.0,0.00020608,2]
[310887268,1704778380191,401.67001773,0.0002231,2]
[310887269,1704778382195,360.26072372,0.00018317,2]
[310887270,1704778382400,559.65017112,0.00020377,2]
[310887271,1704778383103,155.0,0.00021064,2]
[310887272,1704778384188,744.83,0.00022093,2]
[310887273,1704778385206,728.15565437,0.00021,2]
[310887274,1704778385964,476.42,0.00022041,2]
[310887275,1704778387665,1596.87726617,0.000184,2]
[310887276,1704778388116,620.96617796,0.0002198,2]
[310887277,1704778388653,155.0,0.0002,2]